[Event "Titled Tuesday Blitz June 27 Early 2023"]
[White "Dahlgren, James Allen"]
[Black "Ballecer, Dino"]
[WhiteFideId "22256873"]
[BlackFideId "5203597"]
[WhiteElo "2164"]
[BlackElo "2585"]
[Result "0-1"]
[Round "1"]
[TimeControl "180+2"]
[Date "2023.06.27"]
[WhiteClock "0:00:02"]
[BlackClock "0:00:07"]
[Board "212"]

1. d3 {[%clk 0:02:59]}  g6 {[%clk 0:02:58]} 2. f4 {[%clk 0:02:56]}  Bg7 {[%clk 0:02:58]} 3. Nf3 {[%clk 0:02:53]}  d5 {[%clk 0:02:57]} 4. g3 {[%clk 0:02:52]}  Nc6 {[%clk 0:02:56]} 5. Bg2 {[%clk 0:02:52]}  e5 {[%clk 0:02:55]} 6. O-O {[%clk 0:02:53]}  Nge7 {[%clk 0:02:50]} 7. Nc3 {[%clk 0:02:53]}  O-O {[%clk 0:02:49]} 8. e4 {[%clk 0:02:35]}  dxe4 {[%clk 0:02:44]} 9. dxe4 {[%clk 0:02:29]}  Bg4 {[%clk 0:02:41]} 10. Be3 {[%clk 0:02:25]}  exf4 {[%clk 0:02:26]} 11. gxf4 {[%clk 0:02:21]}  h6 {[%clk 0:02:00]} 12. h3 {[%clk 0:02:04]}  Bh5 {[%clk 0:01:53]} 13. Qe1 {[%clk 0:02:01]}  Bxf3 {[%clk 0:01:37]} 14. Bxf3 {[%clk 0:01:56]}  Nd4 {[%clk 0:01:32]} 15. Rf2 {[%clk 0:01:33]}  Nec6 {[%clk 0:01:28]} 16. Rd1 {[%clk 0:01:32]}  Qh4 {[%clk 0:01:23]} 17. Bg2 {[%clk 0:01:26]}  Rad8 {[%clk 0:01:14]} 18. Nd5 {[%clk 0:01:22]}  Ne6 {[%clk 0:00:58]} 19. c3 {[%clk 0:01:19]}  Rc8 {[%clk 0:00:47]} 20. f5 {[%clk 0:01:14]}  Ng5 {[%clk 0:00:47]} 21. f6 {[%clk 0:01:07]}  Bh8 {[%clk 0:00:43]} 22. Rf4 {[%clk 0:00:55]}  Qxe1+ {[%clk 0:00:42]} 23. Rxe1 {[%clk 0:00:56]}  Rfe8 {[%clk 0:00:42]} 24. Bd4 {[%clk 0:00:47]}  Nxd4 {[%clk 0:00:40]} 25. cxd4 {[%clk 0:00:47]}  Ne6 {[%clk 0:00:40]} 26. Rf2 {[%clk 0:00:41]}  Rcd8 {[%clk 0:00:24]} 27. e5 {[%clk 0:00:40]}  Nxd4 {[%clk 0:00:21]} 28. Ne7+ {[%clk 0:00:40]}  Kf8 {[%clk 0:00:20]} 29. Bxb7 {[%clk 0:00:41]}  Rxe7 {[%clk 0:00:17]} 30. fxe7+ {[%clk 0:00:42]}  Kxe7 {[%clk 0:00:18]} 31. Kg2 {[%clk 0:00:38]}  Ne6 {[%clk 0:00:18]} 32. Ref1 {[%clk 0:00:33]}  Rf8 {[%clk 0:00:15]} 33. Re1 {[%clk 0:00:30]}  Nc5 {[%clk 0:00:14]} 34. Be4 {[%clk 0:00:27]}  Nd7 {[%clk 0:00:11]} 35. Bd3 {[%clk 0:00:26]}  Nxe5 {[%clk 0:00:11]} 36. Rfe2 {[%clk 0:00:26]}  Kd6 {[%clk 0:00:11]} 37. Be4 {[%clk 0:00:22]}  f5 {[%clk 0:00:10]} 38. Bf3 {[%clk 0:00:21]}  g5 {[%clk 0:00:10]} 39. Rd1+ {[%clk 0:00:18]}  Ke7 {[%clk 0:00:10]} 40. Rde1 {[%clk 0:00:18]}  Kd6 {[%clk 0:00:10]} 41. Rd1+ {[%clk 0:00:18]}  Ke6 {[%clk 0:00:10]} 42. Bd5+ {[%clk 0:00:17]}  Kf6 {[%clk 0:00:10]} 43. Rde1 {[%clk 0:00:17]}  Re8 {[%clk 0:00:10]} 44. b4 {[%clk 0:00:15]}  Re7 {[%clk 0:00:10]} 45. a4 {[%clk 0:00:15]}  Bg7 {[%clk 0:00:10]} 46. a5 {[%clk 0:00:15]}  Bf8 {[%clk 0:00:10]} 47. b5 {[%clk 0:00:15]}  Re8 {[%clk 0:00:10]} 48. Bb3 {[%clk 0:00:13]}  Bd6 {[%clk 0:00:10]} 49. Ba4 {[%clk 0:00:12]}  Rb8 {[%clk 0:00:09]} 50. Rd1 {[%clk 0:00:09]}  f4 {[%clk 0:00:10]} 51. Red2 {[%clk 0:00:08]}  h5 {[%clk 0:00:08]} 52. Rxd6+ {[%clk 0:00:08]}  cxd6 {[%clk 0:00:09]} 53. Rxd6+ {[%clk 0:00:09]}  Ke7 {[%clk 0:00:09]} 54. Ra6 {[%clk 0:00:09]}  Rb7 {[%clk 0:00:08]} 55. b6 {[%clk 0:00:09]}  axb6 {[%clk 0:00:08]} 56. axb6 {[%clk 0:00:10]}  Kd6 {[%clk 0:00:07]} 57. Ra7 {[%clk 0:00:10]}  Rxb6 {[%clk 0:00:07]} 58. Rh7 {[%clk 0:00:08]}  Rb2+ {[%clk 0:00:08]} 59. Kf1 {[%clk 0:00:08]}  h4 {[%clk 0:00:08]} 60. Rg7 {[%clk 0:00:07]}  Nf3 {[%clk 0:00:08]} 61. Rxg5 {[%clk 0:00:02]}  Nxg5 {[%clk 0:00:07]} 0-1


[Site "https://www.chess.com"]

[Event "Titled Tuesday Blitz June 27 Early 2023"]
[White "le-castor-faineant"]
[Black "Mendez Fortes, Eduardo Jesus"]
[BlackFideId "3502376"]
[WhiteElo "2141"]
[BlackElo "2580"]
[Result "0-1"]
[Round "1"]
[TimeControl "180+2"]
[Date "2023.06.27"]
[WhiteClock "0:00:00"]
[BlackClock "0:01:04"]
[Board "216"]

1. e4 {[%clk 0:02:58]}  c5 {[%clk 0:02:59]} 2. Nf3 {[%clk 0:02:58]}  d6 {[%clk 0:02:59]} 3. d4 {[%clk 0:02:57]}  cxd4 {[%clk 0:03:00]} 4. Nxd4 {[%clk 0:02:58]}  Nf6 {[%clk 0:03:00]} 5. Nc3 {[%clk 0:02:58]}  a6 {[%clk 0:03:01]} 6. Be2 {[%clk 0:02:54]}  e5 {[%clk 0:03:00]} 7. Nb3 {[%clk 0:02:51]}  Be7 {[%clk 0:03:01]} 8. O-O {[%clk 0:02:51]}  O-O {[%clk 0:03:01]} 9. f4 {[%clk 0:02:47]}  Nc6 {[%clk 0:02:57]} 10. f5 {[%clk 0:02:37]}  b5 {[%clk 0:02:55]} 11. a3 {[%clk 0:02:36]}  Bb7 {[%clk 0:02:55]} 12. Bg5 {[%clk 0:02:33]}  Rc8 {[%clk 0:02:46]} 13. Bxf6 {[%clk 0:02:33]}  Bxf6 {[%clk 0:02:47]} 14. Kh1 {[%clk 0:02:24]}  Nd4 {[%clk 0:02:44]} 15. Nxd4 {[%clk 0:02:23]}  exd4 {[%clk 0:02:45]} 16. Nd5 {[%clk 0:02:23]}  Bxd5 {[%clk 0:02:44]} 17. exd5 {[%clk 0:02:23]}  Re8 {[%clk 0:02:43]} 18. Bd3 {[%clk 0:02:23]}  Re3 {[%clk 0:02:42]} 19. Re1 {[%clk 0:02:12]}  Qe7 {[%clk 0:02:41]} 20. Rxe3 {[%clk 0:01:30]}  dxe3 {[%clk 0:02:40]} 21. Rb1 {[%clk 0:01:28]}  Qe5 {[%clk 0:02:39]} 22. Qf3 {[%clk 0:01:19]}  Re8 {[%clk 0:02:37]} 23. b3 {[%clk 0:01:19]}  Qc3 {[%clk 0:02:36]} 24. Qe2 {[%clk 0:01:12]}  h6 {[%clk 0:02:29]} 25. a4 {[%clk 0:01:10]}  bxa4 {[%clk 0:02:28]} 26. bxa4 {[%clk 0:01:11]}  a5 {[%clk 0:02:29]} 27. g3 {[%clk 0:01:01]}  Qc5 {[%clk 0:02:21]} 28. Rb5 {[%clk 0:00:59]}  Qa3 {[%clk 0:02:19]} 29. Rxa5 {[%clk 0:00:55]}  Qc1+ {[%clk 0:02:05]} 30. Kg2 {[%clk 0:00:55]}  Qd2 {[%clk 0:01:55]} 31. Rb5 {[%clk 0:00:51]}  Rc8 {[%clk 0:01:53]} 32. Qxd2 {[%clk 0:00:40]}  exd2 {[%clk 0:01:54]} 33. Rb1 {[%clk 0:00:40]}  Re8 {[%clk 0:01:50]} 34. Kf2 {[%clk 0:00:31]}  Bc3 {[%clk 0:01:49]} 35. Rd1 {[%clk 0:00:22]}  Kf8 {[%clk 0:01:38]} 36. Be2 {[%clk 0:00:18]}  Re4 {[%clk 0:01:35]} 37. Bb5 {[%clk 0:00:10]}  Ke7 {[%clk 0:01:32]} 38. Kf3 {[%clk 0:00:10]}  Re5 {[%clk 0:01:32]} 39. Bd3 {[%clk 0:00:05]}  Kf6 {[%clk 0:01:31]} 40. g4 {[%clk 0:00:04]}  Rxd5 {[%clk 0:01:29]} 41. Rb1 {[%clk 0:00:04]}  Re5 {[%clk 0:01:25]} 42. Be2 {[%clk 0:00:04]}  Bd4 {[%clk 0:01:21]} 43. Rb5 {[%clk 0:00:03]}  Re3+ {[%clk 0:01:20]} 44. Kf2 {[%clk 0:00:01]}  Rd3+ {[%clk 0:01:05]} 45. Kf1 {[%clk 0:00:02]}  d1=Q+ {[%clk 0:01:06]} 46. Bxd1 {[%clk 0:00:02]}  Rxd1+ {[%clk 0:01:07]} 47. Ke2 {[%clk 0:00:03]}  Ra1 {[%clk 0:01:05]} 48. Rd5 {[%clk 0:00:00]}  Bc5 {[%clk 0:01:04]} 0-1


[Site "https://www.chess.com"]

[Event "Titled Tuesday Blitz June 27 Early 2023"]
[White "Vargas Rodriguez, Wilver"]
[Black "Vlassov, Nikolai"]
[WhiteFideId "3509672"]
[BlackFideId "4103360"]
[WhiteElo "2137"]
[BlackElo "2575"]
[Result "0-1"]
[Round "1"]
[TimeControl "180+2"]
[Date "2023.06.27"]
[WhiteClock "0:00:00"]
[BlackClock "0:00:13"]
[Board "218"]

1. Nf3 {[%clk 0:02:58]}  c5 {[%clk 0:02:57]} 2. c4 {[%clk 0:02:56]}  g6 {[%clk 0:02:57]} 3. Nc3 {[%clk 0:02:55]}  Bg7 {[%clk 0:02:56]} 4. g3 {[%clk 0:02:54]}  Nc6 {[%clk 0:02:55]} 5. Bg2 {[%clk 0:02:55]}  d6 {[%clk 0:02:56]} 6. O-O {[%clk 0:02:54]}  Nh6 {[%clk 0:02:55]} 7. Rb1 {[%clk 0:02:43]}  Nf5 {[%clk 0:02:54]} 8. a3 {[%clk 0:02:41]}  h5 {[%clk 0:02:53]} 9. h4 {[%clk 0:02:34]}  Nfd4 {[%clk 0:02:51]} 10. d3 {[%clk 0:02:18]}  Bg4 {[%clk 0:02:50]} 11. e3 {[%clk 0:01:44]}  Nxf3+ {[%clk 0:02:45]} 12. Bxf3 {[%clk 0:01:43]}  Qd7 {[%clk 0:02:45]} 13. Bxg4 {[%clk 0:01:12]}  hxg4 {[%clk 0:02:44]} 14. Qa4 {[%clk 0:01:07]}  Ne5 {[%clk 0:02:24]} 15. Qxd7+ {[%clk 0:01:06]}  Kxd7 {[%clk 0:02:23]} 16. Rd1 {[%clk 0:00:59]}  Nf3+ {[%clk 0:02:15]} 17. Kg2 {[%clk 0:00:59]}  g5 {[%clk 0:02:15]} 18. hxg5 {[%clk 0:00:46]}  Rh2+ {[%clk 0:02:13]} 19. Kf1 {[%clk 0:00:46]}  Nxg5 {[%clk 0:02:04]} 20. Ke2 {[%clk 0:00:38]}  Rah8 {[%clk 0:02:00]} 21. e4 {[%clk 0:00:36]}  Nf3 {[%clk 0:01:42]} 22. Be3 {[%clk 0:00:32]}  a6 {[%clk 0:00:58]} 23. Rf1 {[%clk 0:00:25]}  e6 {[%clk 0:00:55]} 24. Rbd1 {[%clk 0:00:12]}  Kc6 {[%clk 0:00:54]} 25. Rc1 {[%clk 0:00:06]}  Nd4+ {[%clk 0:00:44]} 26. Bxd4 {[%clk 0:00:04]}  Bxd4 {[%clk 0:00:45]} 27. Nd1 {[%clk 0:00:04]}  f5 {[%clk 0:00:27]} 28. b4 {[%clk 0:00:02]}  R8h3 {[%clk 0:00:19]} 29. Ke1 {[%clk 0:00:00]}  b6 {[%clk 0:00:13]} 0-1


[Site "https://www.chess.com"]

[Event "Titled Tuesday Blitz June 27 Early 2023"]
[White "deloewre"]
[Black "Guerra Tulcan, Lenin"]
[BlackFideId "3601382"]
[WhiteElo "2128"]
[BlackElo "2573"]
[Result "0-1"]
[Round "1"]
[TimeControl "180+2"]
[Date "2023.06.27"]
[WhiteClock "0:00:07"]
[BlackClock "0:01:48"]
[Board "220"]

1. d4 {[%clk 0:02:56]}  c5 {[%clk 0:03:00]} 2. d5 {[%clk 0:02:55]}  Nf6 {[%clk 0:03:00]} 3. c4 {[%clk 0:02:48]}  b5 {[%clk 0:03:00]} 4. cxb5 {[%clk 0:02:46]}  a6 {[%clk 0:03:01]} 5. b6 {[%clk 0:02:45]}  d6 {[%clk 0:03:00]} 6. Nc3 {[%clk 0:02:41]}  Nbd7 {[%clk 0:03:00]} 7. a4 {[%clk 0:02:30]}  Qxb6 {[%clk 0:02:59]} 8. a5 {[%clk 0:02:27]}  Qc7 {[%clk 0:02:58]} 9. Nf3 {[%clk 0:02:21]}  g6 {[%clk 0:02:58]} 10. e4 {[%clk 0:02:19]}  Rb8 {[%clk 0:02:58]} 11. Be2 {[%clk 0:02:14]}  Bg7 {[%clk 0:02:57]} 12. O-O {[%clk 0:02:13]}  O-O {[%clk 0:02:58]} 13. h3 {[%clk 0:02:00]}  Rb4 {[%clk 0:02:57]} 14. Nd2 {[%clk 0:01:55]}  Qb8 {[%clk 0:02:53]} 15. Nc4 {[%clk 0:01:50]}  Ne8 {[%clk 0:02:36]} 16. Qc2 {[%clk 0:01:45]}  Nc7 {[%clk 0:02:36]} 17. Bg5 {[%clk 0:01:37]}  Re8 {[%clk 0:02:35]} 18. Kh1 {[%clk 0:01:17]}  h6 {[%clk 0:02:33]} 19. Bd2 {[%clk 0:01:12]}  Nb5 {[%clk 0:02:30]} 20. Nxb5 {[%clk 0:01:10]}  Rxb5 {[%clk 0:02:29]} 21. Ra2 {[%clk 0:01:04]}  e6 {[%clk 0:02:23]} 22. dxe6 {[%clk 0:01:00]}  Rxe6 {[%clk 0:02:24]} 23. f4 {[%clk 0:00:57]}  Bb7 {[%clk 0:02:24]} 24. Bf3 {[%clk 0:00:51]}  Qe8 {[%clk 0:02:23]} 25. f5 {[%clk 0:00:44]}  Bxe4 {[%clk 0:02:20]} 26. Bxe4 {[%clk 0:00:43]}  Rxe4 {[%clk 0:02:20]} 27. fxg6 {[%clk 0:00:42]}  Qe6 {[%clk 0:01:59]} 28. gxf7+ {[%clk 0:00:39]}  Kf8 {[%clk 0:01:59]} 29. Nxd6 {[%clk 0:00:31]}  Re2 {[%clk 0:01:59]} 30. Nxb5 {[%clk 0:00:27]}  axb5 {[%clk 0:01:59]} 31. Raa1 {[%clk 0:00:22]}  Qd5 {[%clk 0:01:59]} 32. Rg1 {[%clk 0:00:18]}  Rxd2 {[%clk 0:01:59]} 33. Qh7 {[%clk 0:00:15]}  Nf6 {[%clk 0:01:58]} 34. Qg6 {[%clk 0:00:13]}  Ne4 {[%clk 0:01:51]} 35. Rae1 {[%clk 0:00:10]}  Nf2+ {[%clk 0:01:50]} 36. Kh2 {[%clk 0:00:08]}  Be5+ {[%clk 0:01:51]} 37. g3 {[%clk 0:00:07]}  Ng4# {[%clk 0:01:48]} 0-1


[Site "https://www.chess.com"]

[Event "Titled Tuesday Blitz June 27 Early 2023"]
[White "WindWhistler11"]
[Black "Tqebuchava, Zurab"]
[BlackFideId "13601113"]
[WhiteElo "2571"]
[BlackElo "2105"]
[Result "1-0"]
[Round "1"]
[TimeControl "180+2"]
[Date "2023.06.27"]
[WhiteClock "0:00:54"]
[BlackClock "0:00:25"]
[Board "223"]

1. Nf3 {[%clk 0:03:00]}  d6 {[%clk 0:02:59]} 2. g3 {[%clk 0:02:59]}  Nf6 {[%clk 0:02:51]} 3. c4 {[%clk 0:02:59]}  g6 {[%clk 0:02:48]} 4. Bg2 {[%clk 0:02:59]}  Bg7 {[%clk 0:02:47]} 5. O-O {[%clk 0:02:59]}  O-O {[%clk 0:02:47]} 6. Nc3 {[%clk 0:02:59]}  Nc6 {[%clk 0:02:46]} 7. d4 {[%clk 0:02:57]}  Bg4 {[%clk 0:02:45]} 8. h3 {[%clk 0:02:53]}  Bxf3 {[%clk 0:02:44]} 9. exf3 {[%clk 0:02:49]}  e5 {[%clk 0:02:43]} 10. d5 {[%clk 0:02:43]}  Ne7 {[%clk 0:02:36]} 11. f4 {[%clk 0:02:42]}  exf4 {[%clk 0:02:29]} 12. Bxf4 {[%clk 0:02:43]}  Nd7 {[%clk 0:02:29]} 13. Qd2 {[%clk 0:02:40]}  Ne5 {[%clk 0:02:28]} 14. b3 {[%clk 0:02:36]}  Re8 {[%clk 0:02:25]} 15. Rfe1 {[%clk 0:02:32]}  Nf5 {[%clk 0:02:21]} 16. h4 {[%clk 0:02:28]}  h5 {[%clk 0:02:20]} 17. Ne4 {[%clk 0:02:25]}  Nd4 {[%clk 0:02:12]} 18. Qd1 {[%clk 0:02:03]}  Nf5 {[%clk 0:02:03]} 19. Bg5 {[%clk 0:01:59]}  Qd7 {[%clk 0:01:59]} 20. Bh3 {[%clk 0:01:57]}  Kh8 {[%clk 0:01:52]} 21. Kg2 {[%clk 0:01:54]}  Ng4 {[%clk 0:01:47]} 22. Qd2 {[%clk 0:01:50]}  Re5 {[%clk 0:01:41]} 23. Bxg4 {[%clk 0:01:39]}  hxg4 {[%clk 0:01:41]} 24. Bf6 {[%clk 0:01:40]}  Rae8 {[%clk 0:01:33]} 25. Bxe5 {[%clk 0:01:33]}  Rxe5 {[%clk 0:01:32]} 26. Rad1 {[%clk 0:01:32]}  Qe7 {[%clk 0:01:21]} 27. Ng5 {[%clk 0:01:21]}  Kg8 {[%clk 0:01:16]} 28. Rxe5 {[%clk 0:01:20]}  Bxe5 {[%clk 0:01:10]} 29. Re1 {[%clk 0:01:20]}  Qf6 {[%clk 0:01:07]} 30. Ne4 {[%clk 0:01:18]}  Qg7 {[%clk 0:01:04]} 31. Qg5 {[%clk 0:01:14]}  f6 {[%clk 0:00:55]} 32. Qxg4 {[%clk 0:01:11]}  Kh7 {[%clk 0:00:51]} 33. h5 {[%clk 0:01:10]}  Nd4 {[%clk 0:00:46]} 34. hxg6+ {[%clk 0:01:07]}  Kg8 {[%clk 0:00:43]} 35. Qc8+ {[%clk 0:01:01]}  Qf8 {[%clk 0:00:42]} 36. Nxf6+ {[%clk 0:00:58]}  Kg7 {[%clk 0:00:40]} 37. Qxf8+ {[%clk 0:00:54]}  Kxf8 {[%clk 0:00:39]} 38. Nd7+ {[%clk 0:00:55]}  Kg7 {[%clk 0:00:39]} 39. Nxe5 {[%clk 0:00:56]}  dxe5 {[%clk 0:00:39]} 40. Rxe5 {[%clk 0:00:56]}  Kxg6 {[%clk 0:00:25]} 41. Re7 {[%clk 0:00:54]} 1-0


[Site "https://www.chess.com"]

[Event "Titled Tuesday Blitz June 27 Early 2023"]
[White "Aung Thant Zin"]
[Black "Sowul, Bartosz"]
[WhiteFideId "13000063"]
[BlackFideId "1137590"]
[WhiteElo "2093"]
[BlackElo "2571"]
[Result "0-1"]
[Round "1"]
[TimeControl "180+2"]
[Date "2023.06.27"]
[WhiteClock "0:01:45"]
[BlackClock "0:02:03"]
[Board "224"]

1. e4 {[%clk 0:02:58]}  c5 {[%clk 0:02:59]} 2. Nf3 {[%clk 0:02:56]}  d6 {[%clk 0:02:59]} 3. Bb5+ {[%clk 0:02:56]}  Nd7 {[%clk 0:03:00]} 4. O-O {[%clk 0:02:55]}  a6 {[%clk 0:02:59]} 5. Bxd7+ {[%clk 0:02:54]}  Bxd7 {[%clk 0:03:00]} 6. c3 {[%clk 0:02:52]}  Nf6 {[%clk 0:02:56]} 7. Re1 {[%clk 0:02:50]}  c4 {[%clk 0:02:44]} 8. b3 {[%clk 0:02:49]}  b5 {[%clk 0:02:39]} 9. a4 {[%clk 0:02:47]}  cxb3 {[%clk 0:02:35]} 10. axb5 {[%clk 0:02:42]}  axb5 {[%clk 0:02:34]} 11. Rxa8 {[%clk 0:02:40]}  Qxa8 {[%clk 0:02:35]} 12. Qxb3 {[%clk 0:02:40]}  Nxe4 {[%clk 0:02:32]} 13. d3 {[%clk 0:02:25]}  Nc5 {[%clk 0:02:26]} 14. Qb4 {[%clk 0:02:11]}  Qa4 {[%clk 0:02:19]} 15. Qb2 {[%clk 0:02:09]}  Nxd3 {[%clk 0:02:17]} 16. Qe2 {[%clk 0:01:59]}  Nxe1 {[%clk 0:02:16]} 17. Qxe1 {[%clk 0:01:59]}  e6 {[%clk 0:02:14]} 18. Nbd2 {[%clk 0:01:53]}  Be7 {[%clk 0:02:13]} 19. Ne4 {[%clk 0:01:53]}  O-O {[%clk 0:02:10]} 20. h4 {[%clk 0:01:53]}  Bc6 {[%clk 0:02:09]} 21. Bg5 {[%clk 0:01:45]}  Qxe4 {[%clk 0:02:03]} 0-1


[Site "https://www.chess.com"]

[Event "Titled Tuesday Blitz June 27 Early 2023"]
[White "profedechess93"]
[Black "Jaivardhan Raj"]
[BlackFideId "25744437"]
[WhiteElo "2571"]
[BlackElo "2088"]
[Result "1-0"]
[Round "1"]
[TimeControl "180+2"]
[Date "2023.06.27"]
[WhiteClock "0:00:46"]
[BlackClock "0:00:26"]
[Board "225"]

1. e4 {[%clk 0:03:00]}  c5 {[%clk 0:02:59]} 2. Nf3 {[%clk 0:02:58]}  e6 {[%clk 0:02:54]} 3. d4 {[%clk 0:02:58]}  cxd4 {[%clk 0:02:52]} 4. Nxd4 {[%clk 0:02:59]}  Nc6 {[%clk 0:02:52]} 5. Nc3 {[%clk 0:02:58]}  Qc7 {[%clk 0:02:51]} 6. Ndb5 {[%clk 0:02:58]}  Qb8 {[%clk 0:02:51]} 7. Be3 {[%clk 0:02:58]}  a6 {[%clk 0:02:50]} 8. Bb6 {[%clk 0:02:58]}  axb5 {[%clk 0:02:50]} 9. Nxb5 {[%clk 0:02:59]}  Bb4+ {[%clk 0:02:51]} 10. c3 {[%clk 0:02:59]}  Ba5 {[%clk 0:02:52]} 11. Nc7+ {[%clk 0:02:59]}  Qxc7 {[%clk 0:02:53]} 12. Bxc7 {[%clk 0:03:00]}  Bxc7 {[%clk 0:02:53]} 13. Qg4 {[%clk 0:03:01]}  g6 {[%clk 0:02:54]} 14. Bb5 {[%clk 0:02:59]}  Nge7 {[%clk 0:02:54]} 15. a4 {[%clk 0:02:58]}  Ne5 {[%clk 0:02:42]} 16. Qe2 {[%clk 0:02:57]}  f5 {[%clk 0:02:35]} 17. f4 {[%clk 0:02:44]}  Ng4 {[%clk 0:02:22]} 18. e5 {[%clk 0:02:29]}  Bb6 {[%clk 0:02:00]} 19. h3 {[%clk 0:02:07]}  Nf2 {[%clk 0:01:46]} 20. Rf1 {[%clk 0:02:07]}  Ne4 {[%clk 0:01:45]} 21. Rf3 {[%clk 0:01:56]}  Nd5 {[%clk 0:01:28]} 22. O-O-O {[%clk 0:01:51]}  Ke7 {[%clk 0:01:19]} 23. Kb1 {[%clk 0:01:36]}  Ba5 {[%clk 0:00:57]} 24. c4 {[%clk 0:01:14]}  Nb4 {[%clk 0:00:36]} 25. g4 {[%clk 0:01:06]}  b6 {[%clk 0:00:33]} 26. gxf5 {[%clk 0:01:05]}  exf5 {[%clk 0:00:31]} 27. Re3 {[%clk 0:01:03]}  Rd8 {[%clk 0:00:29]} 28. Rxe4 {[%clk 0:00:55]}  fxe4 {[%clk 0:00:28]} 29. Qxe4 {[%clk 0:00:56]}  Ba6 {[%clk 0:00:27]} 30. f5 {[%clk 0:00:57]}  Bxb5 {[%clk 0:00:27]} 31. axb5 {[%clk 0:00:49]}  gxf5 {[%clk 0:00:26]} 32. Qxf5 {[%clk 0:00:49]}  Rf8 {[%clk 0:00:26]} 33. Qxd7# {[%clk 0:00:46]} 1-0


[Site "https://www.chess.com"]

[Event "Titled Tuesday Blitz June 27 Early 2023"]
[White "Blackwhite017"]
[Black "Sreyas Payyappat"]
[BlackFideId "46674969"]
[WhiteElo "2086"]
[BlackElo "2570"]
[Result "0-1"]
[Round "1"]
[TimeControl "180+2"]
[Date "2023.06.27"]
[WhiteClock "0:00:18"]
[BlackClock "0:00:24"]
[Board "226"]

1. e4 {[%clk 0:02:57]}  c6 {[%clk 0:02:59]} 2. Nf3 {[%clk 0:02:57]}  d5 {[%clk 0:02:58]} 3. exd5 {[%clk 0:02:58]}  cxd5 {[%clk 0:02:58]} 4. Ne5 {[%clk 0:02:59]}  Nc6 {[%clk 0:02:58]} 5. d4 {[%clk 0:02:59]}  Nf6 {[%clk 0:02:56]} 6. c3 {[%clk 0:02:59]}  g6 {[%clk 0:02:56]} 7. Nd2 {[%clk 0:02:53]}  Bg7 {[%clk 0:02:55]} 8. Bd3 {[%clk 0:02:51]}  O-O {[%clk 0:02:54]} 9. f4 {[%clk 0:02:51]}  Qb6 {[%clk 0:02:32]} 10. Qb3 {[%clk 0:02:35]}  Nd7 {[%clk 0:02:14]} 11. Nxd7 {[%clk 0:02:27]}  Bxd7 {[%clk 0:02:15]} 12. Qxb6 {[%clk 0:02:27]}  axb6 {[%clk 0:02:14]} 13. Nf3 {[%clk 0:02:14]}  f6 {[%clk 0:02:11]} 14. O-O {[%clk 0:02:08]}  Bg4 {[%clk 0:02:10]} 15. h3 {[%clk 0:02:03]}  Bxf3 {[%clk 0:02:08]} 16. Rxf3 {[%clk 0:02:01]}  e5 {[%clk 0:02:09]} 17. fxe5 {[%clk 0:02:01]}  fxe5 {[%clk 0:02:10]} 18. Rxf8+ {[%clk 0:01:56]}  Rxf8 {[%clk 0:02:11]} 19. dxe5 {[%clk 0:01:50]}  Nxe5 {[%clk 0:01:52]} 20. Be2 {[%clk 0:01:50]}  Nc4 {[%clk 0:01:50]} 21. Bxc4 {[%clk 0:01:43]}  dxc4 {[%clk 0:01:51]} 22. Be3 {[%clk 0:01:43]}  b5 {[%clk 0:01:50]} 23. Rd1 {[%clk 0:01:40]}  b4 {[%clk 0:01:48]} 24. Rd7 {[%clk 0:01:18]}  bxc3 {[%clk 0:01:45]} 25. bxc3 {[%clk 0:01:18]}  Bxc3 {[%clk 0:01:23]} 26. Rxb7 {[%clk 0:01:14]}  Re8 {[%clk 0:01:22]} 27. Bh6 {[%clk 0:01:07]}  Bd4+ {[%clk 0:01:20]} 28. Kf1 {[%clk 0:00:56]}  c3 {[%clk 0:01:20]} 29. Rc7 {[%clk 0:00:55]}  Ra8 {[%clk 0:01:17]} 30. Rc4 {[%clk 0:00:54]}  Bf6 {[%clk 0:01:14]} 31. a4 {[%clk 0:00:52]}  g5 {[%clk 0:00:52]} 32. h4 {[%clk 0:00:50]}  gxh4 {[%clk 0:00:49]} 33. Ke2 {[%clk 0:00:49]}  Kf7 {[%clk 0:00:44]} 34. Kf3 {[%clk 0:00:49]}  Rb8 {[%clk 0:00:33]} 35. a5 {[%clk 0:00:46]}  Rb3 {[%clk 0:00:15]} 36. Kg4 {[%clk 0:00:41]}  Ra3 {[%clk 0:00:14]} 37. Rc5 {[%clk 0:00:36]}  Kg6 {[%clk 0:00:14]} 38. Be3 {[%clk 0:00:24]}  c2 {[%clk 0:00:14]} 39. Bc1 {[%clk 0:00:23]}  Rg3+ {[%clk 0:00:14]} 40. Kf4 {[%clk 0:00:23]}  Bg5+ {[%clk 0:00:14]} 41. Ke4 {[%clk 0:00:20]}  Bxc1 {[%clk 0:00:15]} 42. Rxc2 {[%clk 0:00:21]}  Bg5 {[%clk 0:00:15]} 43. Rc6+ {[%clk 0:00:22]}  Kh5 {[%clk 0:00:15]} 44. a6 {[%clk 0:00:22]}  Ra3 {[%clk 0:00:15]} 45. Kf5 {[%clk 0:00:21]}  Ra5+ {[%clk 0:00:15]} 46. Ke4 {[%clk 0:00:21]}  Kg4 {[%clk 0:00:16]} 47. Rc7 {[%clk 0:00:21]}  Rxa6 {[%clk 0:00:15]} 48. Rxh7 {[%clk 0:00:21]}  Ra2 {[%clk 0:00:15]} 49. Rg7 {[%clk 0:00:20]}  Rxg2 {[%clk 0:00:16]} 50. Kd3 {[%clk 0:00:19]}  h3 {[%clk 0:00:17]} 51. Rh7 {[%clk 0:00:20]}  h2 {[%clk 0:00:18]} 52. Rh8 {[%clk 0:00:20]}  Bh4 {[%clk 0:00:18]} 53. Rh7 {[%clk 0:00:19]}  Kh3 {[%clk 0:00:19]} 54. Rg7 {[%clk 0:00:20]}  h1=Q {[%clk 0:00:18]} 55. Rxg2 {[%clk 0:00:20]}  Qxg2 {[%clk 0:00:19]} 56. Kd4 {[%clk 0:00:21]}  Kg3 {[%clk 0:00:20]} 57. Kc5 {[%clk 0:00:22]}  Kf4 {[%clk 0:00:20]} 58. Kb5 {[%clk 0:00:22]}  Ke5 {[%clk 0:00:21]} 59. Kb6 {[%clk 0:00:23]}  Kd6 {[%clk 0:00:22]} 60. Ka6 {[%clk 0:00:22]}  Qb2 {[%clk 0:00:22]} 61. Ka5 {[%clk 0:00:23]}  Kc6 {[%clk 0:00:23]} 62. Ka4 {[%clk 0:00:22]}  Be7 {[%clk 0:00:23]} 63. Ka5 {[%clk 0:00:18]}  Qb5# {[%clk 0:00:24]} 0-1


[Site "https://www.chess.com"]